bitfinex-derivatives/quotes_ETHF0:USTF0_20260128
["timestamp","ask_amount","ask_price","bid_price","bid_amount"]
[1769599409599,0.62065549,3020.5,3019.3,4.63403358]
[1769599415510,0.62065549,3020.5,3019.3,1.31803358]
[1769599415704,0.62065549,3020.5,3019.4,6.058]
[1769599419408,0.62206873,3021.5,3019.7,1.31803358]
[1769599419709,0.62206873,3021.3,3019.7,1.31803358]
[1769599422011,0.62206873,3021.3,3019.8,5.95762057]
[1769599424114,0.62206873,3021.3,3019.9,6.075]
[1769599425218,0.6197097,3020.9,3019.9,2.76]
[1769599426310,1.31803358,3020.6,3019.7,5.95762057]
[1769599426513,0.61969511,3020.5,3019.5,5.95762057]
[1769599426713,0.61969511,3020.5,3019.6,2.761]
[1769599427219,0.62380445,3020.5,3019.6,2.76421793]
[1769599434239,0.62380445,3020.5,3019.6,0.00321793]
[1769599434540,0.62380445,3020.5,3019.7,2.77]
[1769599440239,0.6198337,3020.8,3019.9,1.31803358]
[1769599441344,0.62265256,3020.8,3019.9,1.31803358]
[1769599441535,0.62265256,3020.8,3019.7,2.77]
[1769599442943,0.62265256,3020.8,3019.6,5.9608385]
[1769599443339,0.62265256,3020.8,3019.7,2.78]
[1769599451046,0.62265256,3020.8,3019.6,0.00321793]
[1769599451246,0.62265256,3020.8,3019.7,2.785]
[1769599451552,0.62265256,3020.8,3019.8,2.785]
[1769599461053,0.62265256,3020.8,3019.6,0.00321793]
[1769599468164,0.61477594,3020.6,3019.6,0.00321793]
[1769599468364,0.61477729,3020.4,3019.6,0.00321793]
[1769599468861,0.61477729,3020.4,3019.1,2.789]
[1769599469864,0.61477729,3020.4,3019.1,2.79250351]
[1769599470252,0.61477729,3020.4,3019.1,0.00350351]
[1769599470457,0.61477729,3020.4,3019.2,2.789]
[1769599471652,0.61477729,3020.4,3019.4,1.31852565]
[1769599473867,0.61477729,3020.4,3019.6,1.31852565]
[1769599476467,0.61477729,3020.4,3019.8,1.31852565]
[1769599476771,0.00281886,3020.8,3020.0,1.31852565]
[1769599476967,3.80682864,3020.7,3020.0,1.31852565]
[1769599477162,0.38345804,3020.6,3020.0,1.31852565]
[1769599477361,0.00281886,3020.8,3020.0,1.31852565]
[1769599477564,3.80721095,3020.7,3020.0,1.31852565]
[1769599477763,0.00281886,3020.8,3020.0,1.31852565]
[1769599478664,0.30864042,3020.7,3020.0,1.31852565]
[1769599480276,0.30864042,3020.7,3019.8,1.31852565]
[1769599481368,0.30864042,3020.7,3020.0,1.31852565]
[1769599487676,0.30864042,3020.7,3020.2,1.31852565]
[1769599489981,0.30864042,3020.7,3020.0,1.31852565]
[1769599493783,0.00281886,3020.8,3020.2,1.31852565]
[1769599494681,0.00281886,3020.8,3020.0,1.31852565]
[1769599496385,0.00281886,3020.8,3020.0,4.10452565]
[1769599497790,0.31409696,3020.8,3020.0,4.10452565]
[1769599498588,0.31409696,3020.8,3020.0,2.786]
[1769599500092,0.3113266,3020.6,3019.8,2.79]
[1769599500687,0.3113266,3020.6,3019.7,2.791]
[1769599500992,0.31132107,3020.4,3019.6,2.792]
[1769599501588,0.31132107,3020.4,3019.3,5.95762057]
[1769599501788,0.31132107,3020.4,3019.4,2.793]
[1769599502796,0.31132107,3020.4,3019.3,5.95762057]
[1769599502999,0.31132107,3020.4,3019.4,2.797]
[1769599505496,0.31132107,3020.4,3019.4,8.75462057]
[1769599506796,0.31132107,3020.4,3019.4,10.07314622]
[1769599509796,0.31132107,3020.4,3019.6,1.31852565]
[1769599514506,0.31132107,3020.4,3019.7,2.833]
[1769599531725,0.31132107,3020.4,3019.3,7.27587022]
[1769599532020,0.31132107,3020.4,3019.6,2.867]
[1769599537128,0.31132107,3020.4,3019.3,7.27587022]
[1769599537327,0.3012622,3020.2,3019.4,2.871]
[1769599538529,0.30126959,3020.0,3019.1,0.00350351]
[1769599538826,0.30126959,3019.8,3019.1,0.00350351]
[1769599558443,0.30126959,3019.8,3018.1,1.31824965]
[1769599558642,0.30126959,3019.8,3018.2,1.945]
[1769599559341,0.30126959,3019.8,3018.2,1.94741802]
[1769599560340,0.29326024,3019.7,3018.2,0.00241802]
[1769599560546,0.29327294,3019.2,3018.2,0.00241802]
[1769599574744,0.28900657,3019.7,3018.2,0.00241802]
[1769599577857,0.29700705,3019.5,3018.2,0.00241802]
[1769599579459,0.29729815,3019.3,3018.2,0.00241802]
[1769599580164,1.6155478,3019.3,3018.2,0.00241802]
[1769599580457,0.29730558,3019.2,3018.2,0.00241802]
[1769599583266,0.29502051,3019.0,3018.2,0.00241802]
[1769599586062,0.29502051,3019.0,3017.2,0.61909172]
[1769599586266,0.29194125,3018.8,3017.2,2.56409172]
[1769599586965,0.29194125,3018.8,3017.2,0.61909172]
[1769599587166,0.29194125,3018.8,3017.3,2.543]
[1769599588768,0.29194125,3018.8,3017.3,2.811]
[1769599593370,0.29194125,3018.8,3017.4,1.31824965]
[1769599593569,0.29194125,3018.8,3017.8,1.31973174]
[1769599604095,0.29194125,3018.8,3018.0,1.31973174]
[1769599607298,0.2992659,3019.0,3018.4,1.31973174]
[1769599607702,0.2992659,3019.0,3018.2,1.31973174]
[1769599608395,0.2992659,3019.0,3018.0,1.31973174]
[1769599609102,0.2992659,3019.0,3018.0,4.13573174]
[1769599610497,0.2992659,3019.0,3018.0,1.31973174]
[1769599610799,0.2992659,3019.0,3018.1,2.817]
[1769599611302,0.29979207,3019.2,3018.1,2.817]
[1769599616705,0.29979207,3019.2,3018.0,1.31973174]
[1769599617013,0.29959659,3019.0,3018.1,2.246]
[1769599621424,1.31973174,3019.5,3018.1,2.246]
[1769599621613,0.29825527,3019.3,3018.1,2.246]
[1769599621812,0.29825527,3019.3,3018.2,1.31973174]
[1769599622208,0.29825527,3019.3,3018.4,1.31973174]
[1769599622416,0.29825527,3019.3,3018.1,2.246]
[1769599622417,0.29825888,3020.2,3019.0,1.31973174]
[1769599622613,0.29825888,3020.0,3019.0,2.183]
[1769599622810,0.29825888,3019.8,3019.0,2.183]
[1769599624317,0.29751286,3020.2,3019.0,3.50273174]
[1769599624514,0.29751286,3020.2,3019.2,1.31973174]
[1769599627612,0.29751286,3020.2,3019.0,6.81973174]
[1769599628620,0.29785354,3019.8,3018.5,1.31973174]
[1769599628819,0.29785354,3019.8,3018.9,2.508]
[1769599629116,0.29785354,3019.8,3018.9,3.82773174]
[1769599630317,0.29798679,3020.0,3018.9,3.82773174]
[1769599631823,0.2997293,3020.6,3019.9,1.31973174]
[1769599632121,0.2997293,3020.6,3019.9,1.32281006]
[1769599632511,0.00281886,3020.8,3020.1,1.31973174]
[1769599633619,0.00281886,3020.8,3019.9,0.00307832]
[1769599634417,0.2950382,3020.7,3020.0,2.822]
[1769599637122,0.2950382,3020.7,3019.9,0.00307832]
[1769599637322,0.2950382,3020.7,3020.1,2.215]
[1769599637822,0.00281886,3020.8,3020.1,2.215]
[1769599638223,0.29609792,3021.3,3020.2,1.31973174]
[1769599639428,0.30035475,3021.3,3020.2,1.31973174]
[1769599641128,0.29641633,3021.1,3020.1,2.215]
[1769599649236,0.29641633,3021.1,3020.1,1.944]
[1769599650137,0.29673549,3020.5,3019.9,0.00307832]
[1769599650637,0.29673549,3020.5,3019.9,0.00025946]
[1769599650938,0.29673747,3019.9,3019.6,0.1427]
[1769599651736,0.2966355,3020.2,3019.6,0.14534102]
[1769599656542,0.29657337,3020.9,3019.6,0.14534102]
[1769599662144,0.29657337,3020.9,3019.7,1.944]
[1769599663453,0.29657337,3020.9,3019.6,0.14534102]
[1769599663654,0.29657337,3020.9,3019.7,1.944]
[1769599666958,0.29657337,3020.9,3019.6,0.14534102]
[1769599667258,0.29657337,3020.9,3019.6,2.08934102]
[1769599669357,0.29657337,3020.9,3019.6,0.14534102]
[1769599670059,0.29443093,3020.5,3019.1,1.944]
[1769599671057,0.29443093,3020.5,3019.1,1.94667466]
[1769599671258,0.29443093,3020.5,3019.1,0.00267466]
[1769599671456,0.29443093,3020.5,3019.2,1.944]
[1769599683464,0.29443093,3020.5,3019.3,2.823]
[1769599707093,0.29443093,3020.5,3019.1,0.00267466]
[1769599707292,0.29443093,3020.5,3019.4,2.823]
[1769599708799,0.29443093,3020.5,3019.1,0.00267466]
[1769599709005,0.29443093,3020.5,3019.3,2.823]
[1769599712108,0.29443093,3020.5,3019.1,0.00267466]
[1769599712301,0.28906081,3020.3,3019.2,2.824]
[1769599713608,0.28911176,3020.2,3019.2,2.824]
[1769599713912,0.28911176,3020.2,3019.2,4.14273329]
[1769599716207,0.2887343,3020.4,3019.4,1.31873329]
[1769599716408,0.2887343,3020.6,3019.4,1.31873329]
[1769599716711,4.13938701,3020.5,3019.4,1.31873329]
[1769599717009,0.3839463,3020.4,3019.4,1.31873329]
[1769599717308,0.67268261,3020.4,3019.4,1.31873329]
[1769599717499,0.28873631,3020.4,3019.4,1.31873329]
[1769599717812,0.28873631,3020.4,3019.6,1.31873329]
[1769599718509,0.29170151,3020.6,3019.6,1.31873329]
[1769599718705,3.85060199,3020.5,3019.6,1.31873329]
[1769599718910,0.38394192,3020.4,3019.6,1.31873329]
[1769599719112,0.29170151,3020.6,3019.6,1.31873329]
[1769599719413,4.14238001,3020.5,3019.6,1.31873329]
[1769599719609,0.38394393,3020.4,3019.6,1.31873329]
[1769599719809,0.29170151,3020.5,3019.6,1.31873329]
[1769599720011,0.3839047,3020.4,3019.6,1.31873329]
[1769599720210,0.29170151,3020.5,3019.6,1.31873329]
[1769599720411,0.38387957,3020.4,3019.6,1.31873329]
[1769599720614,0.29170151,3020.5,3019.6,1.31873329]
[1769599721409,0.2961013,3021.0,3020.0,1.31873329]
[1769599721608,0.2961013,3020.8,3020.0,1.31873329]
[1769599722111,0.2961013,3021.0,3020.2,1.31873329]
[1769599722308,0.2961013,3020.8,3020.2,1.31873329]
[1769599722509,0.29610223,3021.2,3020.2,1.31873329]
[1769599722810,0.29610223,3021.0,3020.2,3.26273329]
[1769599723114,0.3837004,3020.9,3020.2,3.26273329]
[1769599723416,0.29610223,3021.0,3020.2,3.26273329]
[1769599723815,0.29610223,3021.0,3020.2,1.944]
[1769599726921,0.29610223,3021.0,3020.0,1.31873329]
[1769599727109,0.29610223,3021.0,3020.1,2.197]
[1769599728411,0.29610223,3021.0,3020.2,1.31873329]
[1769599728616,0.29650711,3021.2,3020.2,1.31873329]
[1769599733218,0.29650711,3021.2,3020.0,3.58673329]
[1769599737219,0.29650711,3021.2,3020.2,1.31873329]
[1769599737618,0.29650711,3021.2,3020.4,1.31873329]
[1769599738913,0.00425683,3021.3,3020.4,1.31873329]
[1769599739419,0.29894165,3021.3,3020.4,1.31873329]
[1769599740922,0.00425683,3021.3,3020.4,1.31873329]
[1769599741520,0.29886666,3021.3,3020.4,1.31873329]
[1769599742822,0.00425683,3021.3,3020.6,1.31873329]
[1769599743025,0.30023729,3021.3,3020.6,1.31873329]
[1769599744320,0.30023729,3021.3,3020.4,1.31873329]
[1769599746722,0.30023729,3021.3,3020.2,1.31873329]
[1769599750523,0.30023729,3021.3,3020.3,2.817]
[1769599753719,0.30023729,3021.3,3020.4,1.31873329]
[1769599755627,0.30023729,3021.3,3020.6,1.31873329]
[1769599756930,1.31873329,3022.0,3020.6,1.31873329]
[1769599757220,3.83365042,3021.9,3020.6,1.31873329]
[1769599757420,0.38363763,3021.8,3020.6,1.31873329]
[1769599757621,1.31873329,3022.0,3020.6,1.31873329]
[1769599757825,3.83299434,3021.9,3020.6,1.31873329]
[1769599758126,3.83299479,3021.8,3020.8,1.31873329]
[1769599758326,0.38357125,3021.7,3020.6,1.31873329]
[1769599758520,1.32138335,3022.0,3020.6,1.31873329]
[1769599758725,3.83249018,3021.9,3020.6,1.31873329]
[1769599758921,3.98175744,3021.8,3020.6,1.31873329]
[1769599759121,0.5327895,3021.7,3020.6,1.31873329]
[1769599759328,0.14926726,3021.7,3020.6,1.31873329]
[1769599760023,1.47045779,3022.0,3020.6,1.31873329]
[1769599760224,3.98108661,3021.9,3020.6,1.31873329]
[1769599760422,3.83201217,3021.8,3020.8,1.31873329]
[1769599760628,0.38347415,3021.7,3020.8,1.31873329]
[1769599760831,0.14907484,3021.8,3020.8,1.31873329]
[1769599766235,0.15168067,3022.0,3020.8,1.31873329]
[1769599766639,0.15168067,3022.0,3021.0,1.31873329]
[1769599769144,0.00265006,3022.0,3021.2,1.31873329]
[1769599769344,0.00265006,3022.0,3021.3,2.815]
[1769599769544,0.00265006,3022.0,3021.3,2.81794728]
[1769599779439,0.14985066,3022.9,3021.4,1.31681605]
[1769599779646,0.14985066,3023.1,3021.8,1.31681605]
[1769599779837,0.14985066,3023.9,3021.8,1.31681605]
[1769599780043,0.14985066,3023.7,3021.8,1.31681605]
[1769599780344,0.14985066,3023.5,3021.8,1.31681605]
[1769599786142,0.14985066,3023.5,3021.3,8.5885397]
[1769599786449,0.14985066,3023.5,3021.9,1.943]
[1769599791352,0.14985066,3023.5,3021.7,1.31681605]
[1769599791553,0.14985066,3023.5,3021.8,5.256]
[1769599795953,1.46666671,3023.5,3021.4,0.1]
[1769599796156,0.15030784,3023.4,3021.5,5.741]
[1769599796655,0.15030784,3023.4,3021.4,0.1]
[1769599796851,0.15030784,3023.4,3021.5,5.694]
[1769599797252,0.15030804,3022.6,3021.6,3.313]
[1769599797454,0.15030804,3022.6,3021.8,0.00427444]
[1769599797653,0.14728025,3023.0,3021.8,0.00427444]
[1769599800865,1.31681605,3023.1,3021.4,0.1]
[1769599800866,0.14728025,3022.6,3021.4,0.1]
[1769599801065,0.14728025,3022.6,3021.5,2.818]
[1769599802563,0.14728025,3022.6,3021.6,0.0161243]
[1769599805969,0.14728025,3022.8,3021.6,0.0161243]
[1769599807468,0.14728025,3023.6,3021.6,0.0161243]
[1769599807668,0.14728025,3023.4,3021.6,0.0161243]
[1769599809171,3.44702085,3023.3,3021.6,0.0161243]
[1769599809372,0.14728025,3023.2,3021.6,0.0161243]
[1769599809884,0.14728025,3023.2,3021.8,0.02386601]
[1769599810073,0.14728025,3023.2,3021.9,3.33686601]
[1769599810274,0.14728025,3023.2,3022.0,0.02386601]
[1769599819677,0.14728025,3023.2,3022.2,0.01849288]
[1769599826078,0.14728025,3023.2,3022.3,5.81]
[1769599826382,0.14728025,3023.2,3022.0,0.02017788]
[1769599826577,0.14155346,3022.9,3021.8,7.26877637]
[1769599826780,0.14155346,3022.5,3021.4,2.913]
[1769599828083,0.14155346,3022.5,3021.5,0.020154]
[1769599829478,0.14155346,3022.5,3021.4,2.913]
[1769599830390,0.14155346,3022.5,3021.4,0.1]
[1769599830580,0.14155346,3022.5,3021.5,2.818]
[1769599832687,0.14155346,3022.5,3021.5,2.84209133]
[1769599832879,0.14155346,3022.5,3021.5,0.02409133]
[1769599833080,0.14155346,3022.5,3021.6,2.323]
[1769599835086,0.14155346,3022.5,3021.6,2.34541372]
[1769599835590,0.14155346,3022.5,3021.7,0.02240282]
[1769599836082,0.14155346,3022.5,3021.6,2.323]
[1769599836480,0.14155346,3022.3,3021.6,2.323]
[1769599840185,0.14155346,3022.3,3021.6,4.13654995]
[1769599845795,0.14155346,3022.3,3021.6,4.16314032]
[1769599849498,0.14155346,3022.3,3021.6,1.34314032]
[1769599849694,0.14155346,3022.2,3021.3,0.00294728]
[1769599849998,0.14155346,3022.2,3021.3,1.94594728]
[1769599850796,0.14155346,3022.2,3021.4,1.31654995]
[1769599851296,0.14155346,3022.9,3022.0,1.34300742]
[1769599851501,0.14155346,3022.7,3022.0,1.31654995]
[1769599853898,0.14155346,3022.7,3021.9,0.02644829]
[1769599856200,0.1458426,3022.5,3021.9,0.02644829]
[1769599858896,0.1458426,3022.5,3021.8,1.34014686]
[1769599859503,0.1458426,3022.5,3021.9,0.02358871]
[1769599861297,42.11654995,3023.2,3021.9,0.02358871]
[1769599861498,0.1458426,3023.0,3022.2,1.31654995]
[1769599861696,0.1458426,3023.0,3022.2,1.34007909]
[1769599861997,0.1458426,3023.0,3022.3,0.02352914]
[1769599862597,0.1458426,3023.0,3022.0,1.33975782]
[1769599863602,0.1458426,3023.0,3022.0,4.01075782]
[1769599864002,0.1458426,3023.0,3022.0,3.98754995]
[1769599864206,0.1458426,3023.0,3022.2,1.31654995]
[1769599864405,0.1458426,3023.0,3022.2,1.33975]
[1769599865108,0.1458426,3023.5,3022.4,1.33517524]
[1769599866604,0.1458426,3023.5,3022.5,0.01204357]
[1769599869403,0.1458426,3023.5,3022.7,0.01056585]
[1769599869610,0.14952749,3023.7,3023.0,1.31654995]
[1769599869810,0.14952749,3023.7,3023.0,1.3271158]
[1769599870606,0.1458426,3023.6,3022.4,1.31654995]
[1769599870803,0.1458426,3023.4,3022.5,0.01002006]
[1769599871003,0.1458426,3023.4,3022.6,2.296]
[1769599872312,0.1458426,3023.4,3022.6,2.30601321]
[1769599872810,0.1458426,3023.4,3022.7,2.829]
[1769599873108,1.32023484,3023.7,3022.7,2.829]
[1769599873109,0.14952749,3023.7,3022.8,0.00527891]
[1769599875209,0.14952749,3023.7,3022.7,4.14554995]
[1769599875404,0.14952749,3023.7,3022.7,2.829]
[1769599875908,0.14952749,3023.7,3022.6,0.0059573]
[1769599875909,0.1458426,3023.6,3022.6,0.0059573]
[1769599876103,0.1458426,3023.6,3022.8,2.08]
[1769599877510,0.1458426,3023.6,3022.6,0.0059573]
[1769599877807,0.1458426,3023.6,3022.7,1.94829794]
[1769599878909,0.1458426,3023.6,3022.8,0.00602985]
[1769599880510,0.1458426,3023.6,3022.7,3.25954995]
[1769599880713,0.1458426,3023.6,3022.7,1.943]
[1769599880907,0.1458426,3023.6,3022.5,1.3223209]
[1769599881104,0.1458426,3023.6,3022.6,1.94877095]
[1769599883411,0.1458426,3023.6,3022.7,1.31654995]
[1769599883613,0.1458426,3023.6,3022.7,1.3215492]
[1769599884314,0.1458426,3023.6,3022.8,0.00499925]
[1769599885008,0.1458426,3023.6,3022.7,1.31654995]
[1769599885208,0.1458426,3023.6,3022.8,0.005584]
[1769599886017,0.00368489,3023.7,3023.0,0.00557832]
[1769599887807,0.00368489,3023.7,3022.6,1.943]
[1769599887808,0.00368489,3023.7,3023.1,1.31654995]
[1769599888003,0.14368643,3024.0,3023.1,1.31654995]
[1769599889014,0.14721269,3024.0,3023.1,1.31654995]
[1769599889216,0.14721269,3024.0,3022.9,1.31654995]
[1769599890016,0.14721269,3024.0,3023.1,1.31654995]
[1769599894122,0.14721269,3024.0,3023.0,3.312]
[1769599894322,0.14494553,3023.5,3022.5,7.36877637]
[1769599894523,0.14494553,3023.5,3022.6,2.835]
[1769599895018,1.31654995,3023.4,3022.5,3.412]
[1769599895222,0.14484226,3023.3,3022.7,2.837]
[1769599895629,0.1448424,3023.5,3022.7,2.837]
[1769599899220,0.14165625,3023.9,3022.7,2.837]
[1769599900534,0.00352626,3024.0,3022.7,2.837]
[1769599907140,0.1451909,3024.0,3022.7,2.837]
[1769599908342,0.00352626,3024.0,3022.7,2.837]
[1769599909535,0.00352626,3024.0,3022.9,1.31560545]
[1769599913343,0.00352626,3024.0,3022.9,8.58438182]
[1769599913938,0.14198292,3024.6,3022.9,8.58438182]
[1769599914637,0.14198292,3024.6,3023.0,0.01342847]
[1769599915142,0.14522437,3024.6,3023.0,0.01342847]
[1769599915844,0.14522437,3024.6,3023.2,0.01342444]
[1769599917045,0.14522437,3024.6,3023.3,1.31560545]
[1769599917240,0.14522437,3024.6,3023.4,0.0107307]
[1769599917447,0.14522437,3024.6,3023.6,0.0107268]
[1769599917745,0.14522437,3024.6,3023.6,0.01332752]
[1769599919246,0.14522437,3024.6,3023.6,0.00260072]
[1769599919450,0.14522437,3024.6,3023.5,2.321]
[1769599920049,0.14522437,3024.6,3023.1,0.01338573]
[1769599920249,0.14522437,3024.6,3023.2,6.17638573]
[1769599920449,0.14522437,3024.6,3023.2,6.17978318]
[1769599920945,0.14522437,3024.6,3023.2,0.00339745]
[1769599921146,0.14595312,3024.5,3023.2,0.00339745]
[1769599921448,0.14595312,3024.1,3023.2,0.00339745]
[1769599923452,0.14595312,3024.1,3023.0,2.854]
[1769599924447,0.14595312,3024.1,3023.0,2.85752404]
[1769599928055,0.14595312,3024.1,3023.1,0.02277549]
[1769599931459,0.14595312,3024.1,3023.0,0.00352404]
[1769599932152,0.14595312,3024.1,3023.4,0.61527802]
[1769599940565,0.14595312,3024.1,3023.4,0.64514224]
[1769599941963,0.14595312,3024.4,3023.5,0.02986111]
[1769599942462,0.14595312,3024.4,3023.4,0.61527802]
[1769599947467,0.14595312,3024.4,3023.4,0.64456656]
[1769599948465,0.13862515,3024.2,3023.4,0.64456656]
[1769599948770,0.13862515,3024.2,3023.5,0.02898878]
[1769599950665,0.13862515,3024.2,3023.4,0.61527802]
[1769599955072,0.13862515,3024.2,3023.4,0.64585175]
[1769599956974,0.13862515,3024.2,3023.5,0.02942135]
[1769599958076,0.13862515,3024.5,3023.5,0.02942135]
[1769599958373,0.13862515,3024.3,3023.5,0.02942135]
[1769599961578,0.13862515,3024.3,3023.7,0.0189039]
[1769599962274,0.13865661,3024.5,3023.7,0.0189039]
[1769599962475,3.48257001,3024.4,3023.7,0.0189039]
[1769599962671,0.13865661,3024.5,3023.7,0.0189039]
[1769599962871,3.48259481,3024.4,3023.7,0.0189039]
[1769599963077,0.13865661,3024.5,3023.7,0.0189039]
[1769599963275,3.62121664,3024.4,3023.7,0.0189039]
[1769599963580,0.13862515,3024.4,3023.7,0.0189039]
[1769599964780,0.13862515,3024.4,3023.5,0.0197908]
[1769599965881,0.13862515,3024.4,3023.4,0.61527802]
[1769599966076,0.13862515,3023.7,3023.1,1.0]
[1769599967688,0.13862515,3023.7,3023.0,0.00352404]
[1769599974692,0.13862515,3023.1,3022.4,0.03932117]
[1769599975493,0.13862515,3023.1,3022.4,0.04234261]
[1769599975894,0.13862515,3023.1,3022.4,0.00302144]
[1769599976088,0.14528552,3022.9,3022.4,0.00302144]
[1769599978700,0.14528552,3022.9,3022.0,2.83]
[1769599979593,0.14528552,3022.7,3022.0,0.00274318]
[1769599980901,0.14528552,3022.3,3021.4,0.0468438]
[1769599981086,0.14528552,3022.3,3021.4,2.8768438]
[1769599981794,0.1476525,3022.3,3021.4,0.00255243]
[1769599982096,0.14528552,3021.9,3020.9,0.04684183]
[1769599982490,0.14528552,3021.7,3020.9,2.831]
[1769599982691,0.14528552,3021.7,3020.9,2.88727907]
[1769599982886,0.14528552,3021.7,3020.9,2.89104363]
[1769599983193,0.14528552,3021.7,3021.0,0.05627907]
[1769599984391,0.14528552,3021.7,3020.9,0.00376456]
[1769599985496,0.14528552,3021.3,3020.2,1.37020871]
[1769599985712,0.14528552,3020.9,3019.9,0.05536045]
[1769599985898,0.14528552,3020.9,3020.0,0.05536045]
[1769599986199,0.14528552,3020.9,3020.0,1.99836045]
[1769599986400,1.31484826,3022.2,3020.1,0.05536045]
[1769599986401,0.14528552,3021.3,3020.1,0.05536045]
[1769599986700,0.14528552,3021.3,3020.2,1.3677161]
[1769599987501,0.14528552,3021.3,3020.2,0.05286784]
[1769599987799,0.14528552,3021.3,3019.5,1.31484826]
[1769599987800,0.14528552,3020.4,3019.4,0.05286598]
[1769599987995,0.14528552,3020.4,3019.6,0.05286598]
[1769599988799,1.31484826,3021.3,3019.6,0.00322641]
[1769599988800,0.14528552,3020.2,3019.6,0.00322641]
[1769599992102,0.14528552,3020.2,3019.2,1.943]
[1769599992602,0.14528552,3019.6,3018.8,0.05449788]
[1769599992806,0.14528552,3019.6,3018.9,1.943]
[1769599993010,0.14528552,3019.6,3018.9,0.00369315]
[1769599993011,0.1491401,3019.6,3018.9,0.00369315]
[1769599993504,0.1491401,3019.6,3018.9,1.31854141]
[1769599993709,0.00385458,3019.6,3018.9,0.0581893]
[1769599993900,0.14528552,3020.1,3018.9,0.0581893]
[1769599994805,0.14904223,3020.1,3018.9,0.0581893]
[1769599996308,0.00375671,3020.1,3018.9,0.0581893]
[1769599997709,0.14528552,3021.1,3019.2,0.05145078]
[1769599998511,0.14810486,3021.1,3019.2,0.05145078]
[1769600010419,0.14810486,3021.1,3019.4,0.04358637]
[1769600014724,0.14810486,3021.1,3019.6,0.03392805]
[1769600015518,1.31806601,3020.9,3019.6,1.31806601]
[1769600015710,1.31806601,3020.9,3019.7,0.03392682]
[1769600015917,1.31806601,3020.3,3019.3,7.30270319]
[1769600016111,1.31806601,3020.3,3019.4,6.137]
[1769600016312,1.45154829,3020.3,3019.4,6.17092682]
[1769600016518,0.13348228,3020.2,3019.5,3.315]
[1769600016821,0.13348228,3020.2,3019.5,6.138]
[1769600018219,0.13348228,3020.2,3019.6,2.825]
[1769600019326,0.13348228,3021.0,3019.7,2.826]
[1769600019627,0.13348228,3021.0,3019.8,0.03334705]
[1769600032445,0.13348228,3021.0,3020.0,0.03208219]
[1769600037341,0.13348228,3021.0,3020.1,3.315]
[1769600038750,0.13348228,3021.0,3020.2,0.03164007]
[1769600038952,0.14111756,3021.1,3020.2,0.03164007]
[1769600039352,10.358,3022.2,3020.2,0.03164007]
[1769600039552,3.83951338,3022.1,3020.2,0.03164007]
[1769600039752,3.83951338,3022.0,3020.2,0.03164007]
[1769600039951,3.83951338,3021.9,3020.2,0.03164007]
[1769600040152,3.83951338,3021.8,3020.2,0.03164007]
[1769600040353,3.47605721,3021.7,3020.2,0.03164007]
[1769600040548,0.00286339,3021.8,3019.8,7.26877637]
[1769600040750,1.31773967,3021.1,3019.8,7.26877637]
[1769600040951,1.31773967,3021.1,3019.9,2.127]
[1769600041150,3.47494057,3021.0,3019.9,2.127]
[1769600041458,0.13829822,3021.4,3019.9,2.127]
[1769600041754,0.13829822,3021.2,3019.9,2.127]
[1769600041955,0.13829822,3021.0,3019.9,1.944]
[1769600043758,0.13829822,3021.0,3018.6,8.54974666]
[1769600043759,3.83795951,3020.9,3019.1,0.14311276]
[1769600044052,3.83795951,3020.8,3019.1,0.14311276]
[1769600044256,3.83795951,3020.7,3019.1,0.14311276]
[1769600044449,3.47467925,3020.6,3019.1,0.14311276]
[1769600044758,0.0272353,3020.8,3019.1,0.14311276]
[1769600044960,0.0272353,3020.6,3019.1,0.14311276]
[1769600048359,0.0272353,3020.6,3019.3,0.17032556]
[1769600051866,40.8,3021.4,3019.3,0.17032556]
[1769600051867,0.13829822,3021.0,3019.3,0.17032556]
[1769600054760,10.36086339,3021.8,3019.3,0.17032556]
[1769600055066,0.13829822,3021.3,3019.4,0.17952479]
[1769600055460,0.13829822,3021.3,3019.5,0.18132082]
[1769600059061,0.13829822,3021.3,3019.5,7.45009719]
[1769600059262,0.13829822,3021.3,3019.6,0.18288504]
[1769600061661,0.13829822,3021.3,3019.7,0.18533013]
[1769600062668,0.13829822,3021.3,3019.9,0.18651216]
[1769600065271,0.13829822,3021.3,3020.0,2.35931535]
[1769600066165,0.13829822,3021.3,3020.1,0.4766253]
[1769600070775,0.45474902,3021.5,3020.1,0.4766253]
[1769600071777,0.45474902,3021.5,3020.3,0.4766253]
[1769600080381,0.45474902,3021.5,3020.4,2.4796253]
[1769600082083,0.45474902,3021.5,3020.5,0.4766253]
[1769600085486,0.45474902,3021.5,3019.7,7.26877637]
[1769600085691,0.45474902,3021.5,3019.9,0.4766253]
[1769600087598,0.45474902,3021.5,3020.5,0.4766253]
[1769600089393,0.45474902,3021.4,3020.5,0.4766253]
[1769600089588,0.45474902,3021.4,3020.2,0.4766253]
[1769600090890,0.45474902,3021.4,3020.4,0.4766253]
[1769600096402,0.45474902,3021.4,3020.6,0.70130491]
[1769600098402,0.71538097,3021.6,3020.6,0.70130491]
[1769600099198,0.71538097,3021.6,3020.8,0.70130491]
[1769600100807,0.00286339,3021.8,3021.2,0.70130491]
[1769600101105,0.00286339,3021.8,3021.2,0.70496864]
[1769600101601,0.71538097,3022.2,3021.4,0.70130491]
[1769600101800,0.71538097,3022.9,3022.0,0.70130491]
[1769600101997,2.03288144,3022.7,3022.0,0.70130491]
[1769600102202,2.03288144,3022.7,3021.6,0.70130491]
[1769600102203,0.71538097,3022.6,3021.6,0.70130491]
[1769600102396,0.71538097,3022.6,3021.6,2.01880538]
[1769600102602,0.71810595,3022.6,3021.7,0.70130491]
[1769600108514,0.71538097,3023.1,3022.1,0.70130491]
[1769600109614,0.71965843,3023.1,3022.1,0.70130491]
[1769600114515,0.71965843,3023.1,3022.3,0.70130491]
[1769600114717,0.00427746,3023.1,3022.3,0.70130491]
[1769600115018,0.71965843,3023.1,3022.3,0.70130491]
[1769600115712,0.71965843,3023.1,3022.1,0.70130491]
[1769600116517,0.71538097,3022.7,3022.1,0.70130491]
[1769600127727,1.31750047,3023.0,3022.1,0.70130491]
[1769600128023,0.8986022,3023.1,3022.1,0.70130491]
[1769600128728,0.8986022,3023.1,3022.3,0.8376362]
[1769600129820,0.89432474,3023.4,3022.5,0.8376362]
[1769600130925,0.8980214,3023.4,3022.5,0.8376362]
[1769600134034,0.89432474,3023.3,3022.5,0.8376362]
[1769600134534,0.89432474,3023.1,3022.5,0.8376362]
[1769600135123,0.89432474,3023.1,3022.2,0.8376362]
[1769600136738,0.89432474,3022.3,3021.6,0.1]
[1769600136936,2.21182521,3022.2,3021.6,0.1]
[1769600137239,0.89432474,3022.1,3021.6,0.1]
[1769600137428,0.89432474,3021.9,3021.2,0.84129993]
[1769600138536,0.89432474,3022.1,3021.2,0.84129993]
[1769600139937,2.21182521,3021.8,3021.2,0.00366373]
[1769600140131,0.89432474,3021.8,3021.2,0.00366373]